fUST/lending_fUST_20240826
["ID","MTS","AMOUNT","RATE_DAILY","PERIOD"]
[336040146,1724677840799,-161.61119404,0.00012249,2]
[336040147,1724677840808,-500.0,0.00012249,2]
[336040148,1724677840817,-501.5063266,0.00012249,2]
[336040149,1724677840827,-500.0,0.00012249,2]
[336040150,1724677840836,-500.0,0.00012249,2]
[336040151,1724677840845,-500.0,0.00012249,2]
[336040152,1724677840854,-500.0,0.00012249,2]
[336040153,1724677840863,-500.0,0.00012249,2]
[336040154,1724677840873,-555.99,0.00012249,2]
[336040155,1724677840882,-500.0,0.00012249,2]
[336040156,1724677840892,-530.11209033,0.00012249,2]
[336040157,1724677840901,-500.0,0.00012249,2]
[336040158,1724677840910,-500.0,0.00012249,2]
[336040159,1724677840919,-500.0,0.00012249,2]
[336040160,1724677840928,-500.0,0.00012249,2]
[336040161,1724677840938,-500.0,0.00012249,2]
[336040163,1724677840947,-500.0,0.00012249,2]
[336040165,1724677840957,-500.0,0.00012249,2]
[336040167,1724677840966,-596.5,0.00012249,2]
[336040169,1724677840977,-500.0,0.00012249,2]
[336040171,1724677840987,-500.0,0.00012249,2]
[336040173,1724677840996,-1324.02,0.00012249,2]
[336040175,1724677841005,-859.82,0.00012249,2]
[336040177,1724677841014,-1306.52,0.00012249,2]
[336040179,1724677841024,-500.0,0.00012249,2]
[336040181,1724677841033,-210.58092546,0.00012249,2]
[336040183,1724677841042,-500.0,0.00012249,2]
[336040185,1724677841052,-665.03,0.00012249,2]
[336040187,1724677841062,-500.0,0.00012249,2]
[336040189,1724677841072,-500.0,0.00012249,2]
[336040191,1724677841081,-500.0,0.00012249,2]
[336040193,1724677841091,-780.98,0.00012249,2]
[336040195,1724677841100,-295.15806935,0.00012249,2]
[336040197,1724677841110,-500.0,0.00012249,2]
[336040199,1724677841119,-615.61381898,0.00012249,2]
[336040201,1724677841129,-500.0,0.00012249,2]
[336040203,1724677841138,-500.0,0.00012249,2]
[336040205,1724677841148,-500.0,0.00012249,2]
[336040207,1724677841158,-500.0,0.00012249,2]
[336040209,1724677841169,-500.0,0.00012249,2]
[336040211,1724677841178,-500.0,0.00012249,2]
[336040213,1724677841189,-502.91890564,0.00012249,2]
[336040215,1724677841199,-1005.88,0.00012249,2]
[336040217,1724677841209,-500.0,0.00012249,2]
[336040219,1724677841218,-500.0,0.00012249,2]
[336040221,1724677841230,-500.0,0.00012249,2]
[336040223,1724677841242,-548.49,0.00012249,2]
[336040225,1724677841253,-500.0,0.00012249,2]
[336040227,1724677841262,-500.0,0.00012249,2]
[336040229,1724677841271,-778.21,0.00012249,2]
[336040231,1724677841285,-500.97078527,0.00012249,2]
[336040233,1724677841295,-537.19,0.00012249,2]
[336040235,1724677841304,-500.0,0.00012249,2]
[336040237,1724677841314,-500.0,0.00012249,2]
[336040239,1724677841324,-500.0,0.00012249,2]
[336040241,1724677841334,-606.12,0.00012249,2]
[336040243,1724677841344,-520.41606326,0.00012249,2]
[336040245,1724677841354,-500.0,0.00012249,2]
[336040247,1724677841365,-1138.25,0.00012249,2]
[336040249,1724677841374,-500.0,0.00012249,2]
[336040251,1724677841384,-500.0,0.00012249,2]
[336040253,1724677841393,-500.0,0.00012249,2]
[336040255,1724677841403,-500.0,0.00012249,2]
[336040257,1724677841412,-500.0,0.00012249,2]
[336040259,1724677841421,-3623.66,0.00012249,2]
[336040261,1724677841430,-500.0,0.00012249,2]
[336040263,1724677841440,-1178.83,0.00012249,2]
[336040265,1724677841449,-737.97,0.00012249,2]
[336040267,1724677841459,-954.75,0.00012249,2]
[336040269,1724677841468,-500.0,0.00012249,2]
[336040271,1724677841483,-500.0,0.00012249,2]
[336040274,1724677841492,-500.0,0.00012249,2]
[336040276,1724677841502,-500.0,0.00012249,2]
[336040278,1724677841511,-500.0,0.0001225,2]
[336040280,1724677841520,-500.0,0.0001225,2]
[336040282,1724677841529,-500.0,0.0001225,2]
[336040284,1724677841539,-500.0,0.0001225,2]
[336040286,1724677841549,-500.0,0.0001225,2]
[336040288,1724677841558,-500.0,0.0001225,2]
[336040290,1724677841568,-500.0,0.0001225,2]
[336040292,1724677841577,-150.0,0.0001225,2]
[336040294,1724677841587,-444.73254996,0.0001225,2]
[336040296,1724677841596,-500.0,0.0001225,2]
[336040298,1724677841605,-500.0,0.0001225,2]
[336040300,1724677841614,-500.0,0.0001225,2]
[336040302,1724677841624,-500.0,0.0001225,2]
[336040304,1724677841635,-500.0,0.0001225,2]
[336040306,1724677841644,-823.26,0.0001225,2]
[336040308,1724677841654,-500.0,0.0001225,2]
[336040310,1724677841663,-656.81,0.0001225,2]
[336040312,1724677841672,-713.98,0.0001225,2]
[336040314,1724677841682,-734.82,0.0001225,2]
[336040316,1724677841692,-500.0,0.0001225,2]
[336040318,1724677841701,-826.92,0.0001225,2]
[336040320,1724677841711,-500.0,0.0001225,2]
[336040322,1724677841720,-500.0,0.0001225,2]
[336040324,1724677841732,-500.0,0.0001225,2]
[336040326,1724677841742,-1015.73,0.0001225,2]
[336040328,1724677841751,-500.0,0.0001225,2]
[336040330,1724677841760,-500.0,0.0001225,2]
[336040332,1724677841770,-572.59,0.0001225,2]
[336040334,1724677841779,-970.61,0.0001225,2]
[336040336,1724677841789,-500.0,0.0001225,2]
[336040338,1724677841798,-500.0,0.0001225,2]
[336040341,1724677841808,-1174.92,0.0001225,2]
[336040343,1724677841817,-932.78,0.0001225,2]
[336040345,1724677841826,-803.91,0.0001225,2]
[336040347,1724677841835,-500.0,0.0001225,2]
[336040349,1724677841844,-528.64,0.0001225,2]
[336040351,1724677841854,-500.0,0.0001225,2]
[336040353,1724677841864,-500.0,0.0001225,2]
[336040354,1724677841874,-500.0,0.0001225,2]
[336040356,1724677841883,-685.95,0.0001225,2]
[336040358,1724677841892,-500.0,0.0001225,2]
[336040360,1724677841901,-500.0,0.0001225,2]
[336040362,1724677841911,-500.0,0.0001225,2]
[336040365,1724677841920,-656.07,0.0001225,2]
[336040367,1724677841930,-500.0,0.0001225,2]
[336040368,1724677841939,-500.0,0.0001225,2]
[336040370,1724677841948,-764.82,0.0001225,2]
[336040373,1724677841958,-500.0,0.0001225,2]
[336040375,1724677841967,-613.06,0.0001225,2]
[336040377,1724677841979,-1000.0,0.0001225,2]
[336040378,1724677841988,-1364.73,0.0001225,2]
[336040380,1724677841997,-500.0,0.0001225,2]
[336040382,1724677842006,-811.77,0.0001225,2]
[336040384,1724677842015,-500.0,0.0001225,2]
[336040386,1724677842025,-2452.6,0.0001225,2]
[336040388,1724677842033,-500.0,0.0001225,2]
[336040390,1724677842042,-500.0,0.0001225,2]
[336040392,1724677842052,-500.0,0.0001225,2]
[336040394,1724677842061,-815.17,0.0001225,2]
[336040396,1724677842070,-500.0,0.0001225,2]
[336040398,1724677842080,-1069.98,0.0001225,2]
[336040400,1724677842089,-511.81065849,0.0001225,2]
[336040402,1724677842099,-801.89,0.0001225,2]
[336040404,1724677842109,-500.0,0.0001225,2]
[336040406,1724677842119,-521.81,0.0001225,2]
[336040408,1724677842128,-494.36229341,0.0001225,2]
[336040410,1724677842138,-500.0,0.0001225,2]
[336040412,1724677842146,-500.0,0.0001225,2]
[336040414,1724677842156,-500.0,0.0001225,2]
[336040416,1724677842165,-1264.35,0.0001225,2]
[336040418,1724677842174,-1250.95,0.0001225,2]
[336040420,1724677842184,-848.25,0.0001225,2]
[336040422,1724677842193,-151.0,0.0001225,2]
[336040424,1724677842203,-500.0,0.0001225,2]
[336040426,1724677842213,-823.93,0.0001225,2]
[336040428,1724677842222,-727.23,0.0001225,2]
[336040430,1724677842232,-682.92,0.0001225,2]
[336040432,1724677842242,-500.0,0.0001225,2]
[336040434,1724677842251,-151.0,0.0001225,2]
[336040436,1724677842260,-151.0,0.0001225,2]
[336040438,1724677842269,-641.39,0.0001225,2]
[336040440,1724677842280,-519.42282598,0.0001225,2]
[336040442,1724677842294,-500.0,0.0001225,2]
[336040444,1724677842303,-500.0,0.0001225,2]
[336040446,1724677842312,-688.1,0.0001225,2]
[336040448,1724677842321,-344.55936161,0.0001225,2]
[336040450,1724677842331,-19948.16037367,0.00012251,2]
[336040452,1724677842341,-500.0,0.00012273,2]
[336040454,1724677842350,-500.0,0.00012273,2]
[336040456,1724677842360,-150.0,0.00012297,2]
[336040458,1724677842371,-1000.0,0.000123,5]
[336040460,1724677842380,-415.5487372,0.000123,2]
[336040462,1724677842390,-153.0,0.000123,2]
[336040464,1724677842400,-207.7743686,0.000123,2]
[336040466,1724677842409,-49859.3621291,0.00012308,2]
[336040468,1724677842418,-151.0,0.00012308,2]
[336040470,1724677842427,-151.0,0.00012308,2]
[336040472,1724677842436,-151.0,0.00012308,2]
[336040474,1724677842446,-24929.6810646,0.00012308,2]
[336040476,1724677842456,-24929.6810646,0.0001231,2]
[336040478,1724677842465,-24929.6810646,0.00012311,2]
[336040480,1724677842475,-2332.52,0.00012316,2]
[336040482,1724677842485,-151.0,0.00012316,2]
[336040484,1724677842496,-151.0,0.00012316,2]
[336040486,1724677842506,-500.0,0.00012317,2]
[336040488,1724677842516,-500.0,0.00012317,2]
[336040490,1724677842526,-500.0,0.00012317,2]
[336040492,1724677842536,-500.0,0.00012317,2]
[336040494,1724677842546,-213.39127348,0.00012317,2]
[336040496,1724677842555,-1005.88,0.00012317,2]
[336040499,1724677842565,-539.070178,0.00012318,2]
[336040501,1724677842576,-1504.523589,0.00012318,2]
[336040503,1724677842585,-539.070178,0.00012318,2]
[336040505,1724677842594,-1504.523589,0.00012318,2]
[336040507,1724677842603,-1059.389236,0.00012318,2]
[336040509,1724677842612,-151.0,0.00012318,2]
[336040511,1724677842627,-151.0,0.00012318,2]
[336040514,1724677842642,-1059.389236,0.00012318,2]
[336040516,1724677842652,-2166.514771,0.00012318,2]
[336040518,1724677842663,-2166.514771,0.00012318,2]
[336040520,1724677842673,-4505.450302,0.00012318,2]
[336040522,1724677842683,-4505.450302,0.00012318,2]
[336040524,1724677842693,-151.0,0.00012318,2]
[336040526,1724677842703,-151.0,0.00012318,2]
[336040528,1724677842712,-2262.423483,0.00012318,2]
[336040530,1724677842722,-2262.423483,0.00012318,2]
[336040532,1724677842733,-151.0,0.00012318,2]
[336040535,1724677842743,-2259.303336,0.00012318,2]
[336040538,1724677842753,-2259.303336,0.00012318,2]
[336040541,1724677842763,-151.0,0.00012318,2]
[336040544,1724677842772,-2520.188002,0.00012318,2]
[336040547,1724677842783,-2520.188002,0.00012318,2]
[336040550,1724677842792,-204.475249,0.00012318,2]
[336040553,1724677842801,-204.475249,0.00012318,2]
[336040555,1724677842811,-225.379496,0.00012318,2]
[336040557,1724677842820,-635.419131,0.00012318,2]
[336040559,1724677842830,-225.379496,0.00012318,2]
[336040562,1724677842840,-635.419131,0.00012318,2]
[336040566,1724677842850,-1549.699567,0.00012318,2]
[336040569,1724677842860,-1549.699567,0.00012318,2]
[336040571,1724677842869,-1586.645441,0.00012318,2]
[336040575,1724677842879,-1586.645441,0.00012318,2]
[336040578,1724677842889,-262.646992,0.00012318,2]
[336040580,1724677842898,-262.646992,0.00012318,2]
[336040582,1724677842908,-1334.319411,0.00012318,2]
[336040585,1724677842917,-1334.319411,0.00012318,2]
[336040588,1724677842927,-174.492092,0.00012318,2]
[336040590,1724677842936,-174.492092,0.00012318,2]
[336040592,1724677842946,-500.0,0.00012319,2]
[336040595,1724677842956,-500.0,0.00012319,2]
[336040597,1724677842966,-500.0,0.00012319,2]
[336040599,1724677842977,-2332.52,0.00012319,2]
[336040601,1724677842988,-2332.52,0.00012319,2]
[336040603,1724677842997,-500.0,0.00012319,2]
[336040605,1724677843007,-500.0,0.00012319,2]
[336040607,1724677843017,-1005.88,0.00012319,2]
[336040610,1724677843027,-500.0,0.0001232,2]
[336040612,1724677843037,-500.0,0.0001232,2]
[336040614,1724677843048,-500.0,0.0001232,2]
[336040616,1724677843058,-567.85,0.0001232,2]
[336040641,1724677843315,-500.0,0.0001232,2]
[336040643,1724677843327,-677.37,0.0001232,2]
[336040645,1724677843337,-500.0,0.0001232,2]
[336040646,1724677843346,-500.0,0.0001232,2]
[336040648,1724677843356,-549.48,0.0001232,2]
[336040651,1724677843368,-500.0,0.0001232,2]
[336040653,1724677843377,-868.4,0.0001232,2]
[336040655,1724677843386,-663.82,0.0001232,2]
[336040656,1724677843396,-500.0,0.0001232,2]
[336040658,1724677843405,-963.04,0.0001232,2]
[336040660,1724677843414,-1038.88,0.0001232,2]
[336040662,1724677843424,-500.0,0.0001232,2]
[336040664,1724677843433,-500.0,0.0001232,2]
[336040667,1724677843443,-753.89,0.0001232,2]
[336040669,1724677843452,-500.0,0.0001232,2]
[336040671,1724677843462,-556.59084258,0.0001232,2]
[336040672,1724677843471,-500.0,0.0001232,2]
[336040674,1724677843484,-500.0,0.0001232,2]
[336040677,1724677843494,-500.0,0.0001232,2]
[336040679,1724677843503,-912.97,0.0001232,2]
[336040680,1724677843512,-500.0,0.0001232,2]
[336040682,1724677843521,-500.0,0.0001232,2]
[336040684,1724677843531,-517.03,0.0001232,2]
[336040686,1724677843540,-859.41,0.0001232,2]
[336040688,1724677843549,-500.0,0.0001232,2]
[336040690,1724677843559,-500.0,0.0001232,2]
[336040692,1724677843568,-500.0,0.0001232,2]
[336040694,1724677843578,-605.83,0.0001232,2]
[336040696,1724677843587,-610.09,0.0001232,2]
[336040698,1724677843596,-730.01,0.0001232,2]
[336040700,1724677843605,-500.0,0.0001232,2]
[336040702,1724677843615,-1162.34,0.0001232,2]
[336040704,1724677843627,-500.0,0.0001232,2]
[336040706,1724677843637,-500.0,0.0001232,2]
[336040708,1724677843646,-500.0,0.0001232,2]
[336040710,1724677843656,-500.0,0.0001232,2]
[336040712,1724677843666,-665.39,0.0001232,2]
[336040714,1724677843675,-500.0,0.0001232,2]
[336040716,1724677843685,-1177.19,0.0001232,2]
[336040718,1724677843694,-500.0,0.0001232,2]
[336040720,1724677843704,-500.0,0.0001232,2]
[336040722,1724677843714,-500.0,0.0001232,2]
[336040724,1724677843725,-1184.64,0.0001232,2]
[336040727,1724677843735,-500.0,0.0001232,2]
[336040729,1724677843745,-500.0,0.0001232,2]
[336040731,1724677843754,-1288.46,0.0001232,2]
[336040732,1724677843763,-711.38,0.0001232,2]
[336040734,1724677843773,-500.0,0.0001232,2]
[336040736,1724677843782,-650.33,0.0001232,2]
[336040738,1724677843792,-1126.9,0.0001232,2]
[336040740,1724677843801,-500.0,0.0001232,2]
[336040742,1724677843811,-500.0,0.0001232,2]
[336040744,1724677843820,-500.0,0.0001232,2]
[336040746,1724677843830,-151.0,0.0001232,2]
[336040749,1724677843840,-500.0,0.0001232,2]
[336040751,1724677843849,-1225.56,0.0001232,2]
[336040753,1724677843859,-500.0,0.0001232,2]
[336040755,1724677843868,-619.4,0.0001232,2]
[336040757,1724677843878,-500.0,0.0001232,2]
[336040759,1724677843887,-500.0,0.0001232,2]
[336040761,1724677843897,-151.0,0.0001232,2]
[336040763,1724677843906,-500.0,0.0001232,2]
[336040765,1724677843915,-500.0,0.0001232,2]
[336040766,1724677843925,-2520.188002,0.0001232,2]
[336040768,1724677843934,-2520.188002,0.0001232,2]
[336040770,1724677843944,-500.0,0.0001232,2]
[336040772,1724677843953,-204.475249,0.0001232,2]
[336040774,1724677843962,-500.0,0.0001232,2]
[336040776,1724677843972,-204.475249,0.0001232,2]
[336040778,1724677843983,-635.419131,0.0001232,2]
[336040780,1724677843992,-500.0,0.0001232,2]
[336040782,1724677844002,-635.419131,0.0001232,2]
[336040784,1724677844011,-2213.59,0.0001232,2]
[336040786,1724677844021,-1117.47,0.0001232,2]
[336040788,1724677844030,-1586.645441,0.0001232,2]
[336040791,1724677844040,-758.71,0.0001232,2]
[336040792,1724677844050,-1586.645441,0.0001232,2]
[336040794,1724677844059,-721.44,0.0001232,2]
[336040795,1724677844068,-500.0,0.0001232,2]
[336040796,1724677844078,-1036.72,0.0001232,2]
[336040797,1724677844087,-675.23,0.0001232,2]
[336040798,1724677844097,-262.646992,0.0001232,2]
[336040799,1724677844106,-262.646992,0.0001232,2]
[336040800,1724677844116,-500.0,0.0001232,2]
[336040801,1724677844125,-1334.319411,0.0001232,2]
[336040802,1724677844135,-1334.319411,0.0001232,2]
[336040803,1724677844144,-847.01,0.0001232,2]
[336040804,1724677844154,-1005.88,0.0001232,2]
[336040805,1724677844163,-500.0,0.0001232,2]
[336040806,1724677844172,-151.0,0.0001232,2]
[336040807,1724677844182,-500.0,0.0001232,2]
[336040808,1724677844191,-500.0,0.0001232,2]
[336040809,1724677844201,-772.24,0.0001232,2]
[336040811,1724677844210,-1295.24,0.0001232,2]
[336040813,1724677844220,-890.26,0.0001232,2]
[336040815,1724677844230,-174.492092,0.0001232,2]
[336040817,1724677844239,-151.0,0.0001232,2]
[336040819,1724677844249,-174.492092,0.0001232,2]
[336040821,1724677844259,-500.0,0.0001232,2]
[336040823,1724677844268,-500.0,0.0001232,2]
[336040825,1724677844277,-539.070178,0.00012321,2]
[336040827,1724677844291,-1504.523589,0.00012321,2]
[336040829,1724677844301,-539.070178,0.00012321,2]
[336040831,1724677844310,-1504.523589,0.00012321,2]
[336040834,1724677844320,-1059.389236,0.00012321,2]
[336040835,1724677844331,-151.0,0.00012321,2]
[336040837,1724677844340,-1059.389236,0.00012321,2]
[336040839,1724677844350,-2166.514771,0.00012321,2]
[336040841,1724677844359,-2166.514771,0.00012321,2]
[336040843,1724677844370,-4505.450302,0.00012321,2]
[336040845,1724677844380,-4505.450302,0.00012321,2]
[336040847,1724677844389,-151.0,0.00012321,2]
[336040850,1724677844399,-151.0,0.00012321,2]
[336040851,1724677844409,-2262.423483,0.00012321,2]
[336040854,1724677844418,-2262.423483,0.00012321,2]
[336040856,1724677844428,-2259.303336,0.00012321,2]
[336040857,1724677844437,-2259.303336,0.00012321,2]
[336040860,1724677844447,-225.379496,0.00012321,2]
[336040862,1724677844456,-225.379496,0.00012321,2]
[336040864,1724677844466,-1549.699567,0.00012321,2]
[336040866,1724677844476,-1549.699567,0.00012321,2]
[336040868,1724677844486,-1586.645441,0.00012321,2]
[336040870,1724677844496,-1586.645441,0.00012321,2]
[336040872,1724677844506,-500.0,0.00012327,2]
[336040873,1724677844515,-500.0,0.00012327,2]
[336040874,1724677844533,-500.0,0.00012327,2]
[336040875,1724677844545,-500.0,0.00012327,2]
[336040876,1724677844556,-500.0,0.00012327,2]
[336040877,1724677844566,-500.0,0.00012327,2]
[336040878,1724677844576,-500.0,0.00012327,2]
[336040879,1724677844587,-500.0,0.00012327,2]
[336040880,1724677844597,-529.92035407,0.00012327,2]
[336040881,1724677844606,-2332.52,0.00012327,2]
[336040882,1724677844616,-2332.52,0.00012327,2]
[336040883,1724677844627,-2332.52,0.00012327,2]
[336040884,1724677844638,-2332.52,0.00012327,2]
[336040885,1724677844648,-500.0,0.00012327,2]
[336040886,1724677844659,-500.0,0.00012327,2]
[336040887,1724677844669,-500.0,0.00012327,2]
[336040888,1724677844679,-500.0,0.00012327,2]
[336040889,1724677844689,-500.0,0.00012327,2]
[336040890,1724677844699,-500.0,0.00012327,2]
[336040892,1724677844709,-1005.88,0.00012327,2]
[336040894,1724677844718,-1005.88,0.00012327,2]
[336040896,1724677844729,-1005.88,0.00012327,2]
[336040898,1724677844739,-151.0,0.00012327,2]
[336040900,1724677844749,-151.0,0.00012327,2]
[336040902,1724677844759,-44263.29114512,0.00012328,5]
[336040904,1724677844770,-517.74,0.00012328,2]
[336040906,1724677844780,-500.0,0.00012328,2]
[336040908,1724677844789,-500.0,0.00012328,2]
[336040910,1724677844799,-500.0,0.00012328,2]
[336040912,1724677844809,-500.0,0.00012328,2]
[336040914,1724677844818,-537.88016613,0.00012328,2]
[336040916,1724677844828,-500.0,0.00012328,2]
[336040917,1724677844838,-873.06,0.00012328,2]
[336040919,1724677844848,-581.61,0.00012328,2]
[336040921,1724677844859,-500.0,0.00012328,2]
[336040923,1724677844869,-639.46,0.00012328,2]
[336040925,1724677844879,-969.99,0.00012328,2]
[336040927,1724677844889,-500.0,0.00012328,2]
[336040929,1724677844899,-500.0,0.00012328,2]
[336040931,1724677844909,-1429.06,0.00012328,2]
[336040933,1724677844919,-500.0,0.00012328,2]
[336040934,1724677844928,-500.0,0.00012328,2]
[336040936,1724677844938,-500.0,0.00012328,2]
[336040937,1724677844948,-623.70342723,0.00012328,2]
[336040938,1724677844958,-500.0,0.00012328,2]
[336040939,1724677844967,-500.0,0.00012328,2]
[336040940,1724677844978,-500.0,0.00012328,2]
[336040941,1724677844988,-500.0,0.00012328,2]
[336040942,1724677844998,-500.0,0.00012328,2]
[336040943,1724677845007,-588.44,0.00012328,2]
[336040944,1724677845018,-500.0,0.00012328,2]
[336040945,1724677845027,-856.96,0.00012328,2]
[336040946,1724677845037,-660.8,0.00012328,2]
[336040947,1724677845047,-500.0,0.00012328,2]
[336040948,1724677845058,-574.96,0.00012328,2]
[336040949,1724677845068,-500.0,0.00012328,2]
[336040950,1724677845078,-500.0,0.00012328,2]
[336040951,1724677845088,-644.91802753,0.00012328,2]
[336040952,1724677845098,-500.0,0.00012328,2]
[336040953,1724677845108,-266.65447245,0.00012328,2]
[336040955,1724677845119,-502.93761345,0.00012328,2]
[336040957,1724677845129,-500.0,0.00012328,2]
[336040959,1724677845139,-500.0,0.00012328,2]
[336040961,1724677845149,-500.0,0.00012328,2]
[336040963,1724677845159,-500.0,0.00012328,2]
[336040965,1724677845169,-500.0,0.00012328,2]
[336040967,1724677845179,-542.05434122,0.00012328,2]
[336040968,1724677845189,-500.0,0.00012328,2]
[336040970,1724677845198,-500.0,0.00012328,2]
[336040972,1724677845209,-832.72,0.00012328,2]
[336040974,1724677845219,-502.90164632,0.00012328,2]
[336040976,1724677845229,-500.0,0.00012328,2]
[336040977,1724677845239,-500.0,0.00012328,2]
[336040979,1724677845248,-541.16942906,0.00012328,2]
[336040981,1724677845258,-705.58,0.00012328,2]
[336040983,1724677845268,-500.0,0.00012328,2]
[336040985,1724677845279,-500.0,0.00012328,2]
[336040987,1724677845293,-800.58,0.00012328,2]
[336040989,1724677845302,-521.79832935,0.00012328,2]
[336040991,1724677845312,-500.0,0.00012328,2]
[336040994,1724677845325,-500.0,0.00012328,2]
[336040996,1724677845336,-500.0,0.00012328,2]
[336040998,1724677845346,-500.0,0.00012328,2]
[336041000,1724677845356,-500.0,0.00012328,2]
[336041002,1724677845368,-500.0,0.00012328,2]
[336041004,1724677845379,-500.0,0.00012328,2]
[336041005,1724677845389,-500.0,0.00012328,2]
[336041006,1724677845399,-500.0,0.00012328,2]
[336041007,1724677845408,-500.0,0.00012328,2]
[336041008,1724677845418,-500.0,0.00012328,2]
[336041009,1724677845429,-551.548176,0.00012328,2]
[336041010,1724677845438,-758.6,0.00012328,2]
[336041011,1724677845448,-500.0,0.00012328,2]
[336041012,1724677845458,-500.0,0.00012328,2]
[336041013,1724677845468,-507.19310601,0.00012328,2]
[336041014,1724677845480,-500.0,0.00012328,2]
[336041015,1724677845490,-500.0,0.00012328,2]
[336041016,1724677845499,-518.00710361,0.00012328,2]
[336041017,1724677845510,-500.0,0.00012328,2]
[336041018,1724677845520,-500.0,0.00012328,2]
[336041019,1724677845530,-500.6739883,0.00012328,2]
[336041020,1724677845540,-500.0,0.00012328,2]
[336041021,1724677845550,-500.0,0.00012328,2]
[336041022,1724677845560,-205.91878196,0.00012328,2]
[336041023,1724677845570,-534.71,0.00012328,2]
[336041024,1724677845580,-565.82,0.00012328,2]
[336041025,1724677845589,-591.39,0.00012328,2]
[336041026,1724677845599,-500.0,0.00012328,2]
[336041027,1724677845609,-1023.32,0.00012328,2]
[336041028,1724677845619,-500.0,0.00012328,2]
[336041029,1724677845628,-500.0,0.00012328,2]
[336041030,1724677845638,-500.0,0.00012328,2]
[336041031,1724677845648,-500.0,0.00012328,2]
[336041032,1724677845658,-531.20908801,0.00012328,2]
[336041033,1724677845669,-624.8,0.00012328,2]
[336041034,1724677845678,-500.0,0.00012328,2]
[336041035,1724677845688,-500.0,0.00012328,2]
[336041036,1724677845698,-700.02,0.00012328,2]
[336041037,1724677845708,-500.0,0.00012328,2]
[336041038,1724677845718,-500.0,0.00012328,2]
[336041039,1724677845729,-501.58266784,0.00012328,2]
[336041040,1724677845739,-506.19896269,0.00012328,2]
[336041041,1724677845749,-500.0,0.00012328,2]
[336041042,1724677845759,-519.45321061,0.00012328,2]
[336041044,1724677845769,-500.0,0.00012328,2]
[336041045,1724677845779,-500.0,0.00012328,2]
[336041046,1724677845789,-516.88674536,0.00012328,2]
[336041047,1724677845799,-505.70093749,0.00012328,2]
[336041048,1724677845810,-500.0,0.00012328,2]
[336041049,1724677845820,-500.0,0.00012328,2]
[336041050,1724677845830,-500.0,0.00012328,2]
[336041051,1724677845840,-500.0,0.00012328,2]
[336041052,1724677845850,-500.0,0.00012328,2]
[336041053,1724677845861,-500.0,0.00012328,2]
[336041054,1724677845871,-500.34294952,0.00012328,2]
[336041056,1724677845881,-500.0,0.00012328,2]
[336041057,1724677845891,-500.0,0.00012328,2]
[336041058,1724677845901,-500.0,0.00012328,2]
[336041059,1724677845911,-817.08,0.00012328,2]
[336041060,1724677845920,-500.0,0.00012328,2]
[336041061,1724677845930,-500.0,0.00012328,2]
[336041062,1724677845940,-500.0,0.00012328,2]
[336041063,1724677845950,-500.0,0.00012328,2]
[336041064,1724677845960,-500.0,0.00012328,2]